[Event "December 19 Early 2023"]
[Site "https://www.chess.com"]
[Date "2023.12.19"]
[Round "5"]
[White "Timerkhanov, Alexander"]
[Black "Czerw, Dawid"]
[Result "1/2-1/2"]
[Board "96"]
[TimeControl "180+1"]
[WhiteFideId "24177938"]
[BlackFideId "1145746"]
[WhiteElo "2278"]
[BlackElo "2144"]
[WhiteTeam "RUS"]
[BlackTeam "POL"]
[WhiteClock "0:00:20"]
[BlackClock "0:00:08"]

1. d4 {[%clk 0:03:00]}  d5 {[%clk 0:02:59]} 2. Bf4 {[%clk 0:02:58]}  Nf6 {[%clk 0:02:56]} 3. e3 {[%clk 0:02:58]}  g6 {[%clk 0:02:56]} 4. Nf3 {[%clk 0:02:55]}  Bg7 {[%clk 0:02:56]} 5. Be2 {[%clk 0:02:56]}  O-O {[%clk 0:02:56]} 6. O-O {[%clk 0:02:56]}  c5 {[%clk 0:02:56]} 7. c3 {[%clk 0:02:50]}  Nc6 {[%clk 0:02:54]} 8. Nbd2 {[%clk 0:02:49]}  Nh5 {[%clk 0:02:40]} 9. Bg5 {[%clk 0:02:47]}  h6 {[%clk 0:02:38]} 10. Bh4 {[%clk 0:02:47]}  g5 {[%clk 0:02:35]} 11. Ne1 {[%clk 0:02:33]}  gxh4 {[%clk 0:02:31]} 12. Bxh5 {[%clk 0:02:33]}  h3 {[%clk 0:02:31]} 13. g3 {[%clk 0:02:32]}  e5 {[%clk 0:02:28]} 14. dxe5 {[%clk 0:02:30]}  Nxe5 {[%clk 0:02:26]} 15. Nef3 {[%clk 0:02:27]}  Nd3 {[%clk 0:02:20]} 16. Rb1 {[%clk 0:02:06]}  Bf5 {[%clk 0:02:15]} 17. Nh4 {[%clk 0:02:05]}  Bh7 {[%clk 0:02:07]} 18. Bg4 {[%clk 0:02:05]}  Bf6 {[%clk 0:01:58]} 19. Ndf3 {[%clk 0:01:59]}  Ne5 {[%clk 0:01:34]} 20. Nxe5 {[%clk 0:01:50]}  Bxe5 {[%clk 0:01:07]} 21. Rc1 {[%clk 0:01:46]}  Kh8 {[%clk 0:01:04]} 22. Bxh3 {[%clk 0:01:45]}  Rg8 {[%clk 0:01:03]} 23. Nf5 {[%clk 0:01:40]}  Qf6 {[%clk 0:00:56]} 24. Qxd5 {[%clk 0:01:16]}  Bxf5 {[%clk 0:00:08]} 25. Bxf5 {[%clk 0:01:17]}  Qxf5 {[%clk 0:00:08]} 26. f4 {[%clk 0:01:17]}  Rae8 {[%clk 0:00:02]} 27. fxe5 {[%clk 0:01:15]}  Qg5 {[%clk 0:00:01]} 28. Qxf7 {[%clk 0:00:50]}  Rxe5 {[%clk 0:00:01]} 29. Qf6+ {[%clk 0:00:48]}  Qxf6 {[%clk 0:00:01]} 30. Rxf6 {[%clk 0:00:48]}  Rxe3 {[%clk 0:00:02]} 31. Rxh6+ {[%clk 0:00:48]}  Kg7 {[%clk 0:00:03]} 32. Rd6 {[%clk 0:00:47]}  Re2 {[%clk 0:00:04]} 33. Rd7+ {[%clk 0:00:47]}  Kg6 {[%clk 0:00:04]} 34. Rxb7 {[%clk 0:00:46]}  Rd8 {[%clk 0:00:05]} 35. Rf1 {[%clk 0:00:30]}  Rdd2 {[%clk 0:00:05]} 36. Rff7 {[%clk 0:00:31]}  Rg2+ {[%clk 0:00:05]} 37. Kf1 {[%clk 0:00:31]}  Rxh2 {[%clk 0:00:05]} 38. Rg7+ {[%clk 0:00:31]}  Kf5 {[%clk 0:00:05]} 39. Rbf7+ {[%clk 0:00:29]}  Ke6 {[%clk 0:00:05]} 40. Kg1 {[%clk 0:00:29]}  Rhe2 {[%clk 0:00:05]} 41. Re7+ {[%clk 0:00:29]}  Kf6 {[%clk 0:00:05]} 42. Rxe2 {[%clk 0:00:30]}  Rxe2 {[%clk 0:00:05]} 43. Rxa7 {[%clk 0:00:28]}  Rxb2 {[%clk 0:00:05]} 44. a4 {[%clk 0:00:24]}  Kf5 {[%clk 0:00:05]} 45. Rc7 {[%clk 0:00:20]}  Kg4 {[%clk 0:00:02]} 46. Rxc5 {[%clk 0:00:20]}  Kxg3 {[%clk 0:00:03]} 47. Kf1 {[%clk 0:00:20]}  Kf3 {[%clk 0:00:03]} 48. Ke1 {[%clk 0:00:21]}  Ke3 {[%clk 0:00:04]} 49. Kd1 {[%clk 0:00:21]}  Kd3 {[%clk 0:00:04]} 50. Kc1 {[%clk 0:00:20]}  Ra2 {[%clk 0:00:04]} 51. a5 {[%clk 0:00:20]}  Rh2 {[%clk 0:00:03]} 52. a6 {[%clk 0:00:19]}  Ra2 {[%clk 0:00:03]} 53. Rc6 {[%clk 0:00:19]}  Ke4 {[%clk 0:00:03]} 54. Kb1 {[%clk 0:00:19]}  Ra5 {[%clk 0:00:03]} 55. Kb2 {[%clk 0:00:19]}  Kd5 {[%clk 0:00:03]} 56. Rh6 {[%clk 0:00:19]}  Kc4 {[%clk 0:00:02]} 57. Rh4+ {[%clk 0:00:18]}  Kb5 {[%clk 0:00:02]} 58. Rh5+ {[%clk 0:00:10]}  Kxa6 {[%clk 0:00:02]} 59. Rh6+ {[%clk 0:00:09]}  Kb5 {[%clk 0:00:02]} 60. Kb3 {[%clk 0:00:10]}  Ra8 {[%clk 0:00:02]} 61. Rh5+ {[%clk 0:00:10]}  Kc6 {[%clk 0:00:02]} 62. Kc4 {[%clk 0:00:11]}  Ra4+ {[%clk 0:00:02]} 63. Kd3 {[%clk 0:00:10]}  Rg4 {[%clk 0:00:03]} 64. c4 {[%clk 0:00:10]}  Rf4 {[%clk 0:00:04]} 65. Kc3 {[%clk 0:00:10]}  Rf1 {[%clk 0:00:04]} 66. Rh6+ {[%clk 0:00:09]}  Kc5 {[%clk 0:00:04]} 67. Rh5+ {[%clk 0:00:10]}  Kc6 {[%clk 0:00:04]} 68. Rh4 {[%clk 0:00:10]}  Rc1+ {[%clk 0:00:04]} 69. Kd2 {[%clk 0:00:11]}  Rg1 {[%clk 0:00:03]} 70. Kd3 {[%clk 0:00:11]}  Rd1+ {[%clk 0:00:03]} 71. Kc2 {[%clk 0:00:11]}  Rg1 {[%clk 0:00:03]} 72. Kb3 {[%clk 0:00:11]}  Rb1+ {[%clk 0:00:03]} 73. Kc3 {[%clk 0:00:11]}  Rc1+ {[%clk 0:00:04]} 74. Kb2 {[%clk 0:00:12]}  Rg1 {[%clk 0:00:04]} 75. Rh5 {[%clk 0:00:12]}  Rf1 {[%clk 0:00:02]} 76. Kc3 {[%clk 0:00:12]}  Rc1+ {[%clk 0:00:02]} 77. Kd3 {[%clk 0:00:12]}  Rd1+ {[%clk 0:00:03]} 78. Ke4 {[%clk 0:00:12]}  Re1+ {[%clk 0:00:03]} 79. Kd4 {[%clk 0:00:13]}  Rd1+ {[%clk 0:00:03]} 80. Kc3 {[%clk 0:00:13]}  Rc1+ {[%clk 0:00:04]} 81. Kb3 {[%clk 0:00:14]}  Rb1+ {[%clk 0:00:04]} 82. Kc2 {[%clk 0:00:14]}  Rg1 {[%clk 0:00:04]} 83. Rh6+ {[%clk 0:00:14]}  Kc5 {[%clk 0:00:05]} 84. Rh4 {[%clk 0:00:15]}  Rf1 {[%clk 0:00:04]} 85. Re4 {[%clk 0:00:15]}  Rg1 {[%clk 0:00:04]} 86. Kd3 {[%clk 0:00:15]}  Rd1+ {[%clk 0:00:04]} 87. Ke2 {[%clk 0:00:15]}  Rh1 {[%clk 0:00:04]} 88. Kf3 {[%clk 0:00:15]}  Rc1 {[%clk 0:00:04]} 89. Re8 {[%clk 0:00:13]}  Rxc4 {[%clk 0:00:04]} 90. Rc8+ {[%clk 0:00:14]}  Kb4 {[%clk 0:00:04]} 91. Rd8 {[%clk 0:00:15]}  Rc5 {[%clk 0:00:04]} 92. Re8 {[%clk 0:00:15]}  Rc7 {[%clk 0:00:05]} 93. Re4+ {[%clk 0:00:16]}  Kb5 {[%clk 0:00:04]} 94. Re5+ {[%clk 0:00:17]}  Kb6 {[%clk 0:00:05]} 95. Re6+ {[%clk 0:00:17]}  Kb7 {[%clk 0:00:05]} 96. Re4 {[%clk 0:00:17]}  Rc3+ {[%clk 0:00:05]} 97. Re3 {[%clk 0:00:17]}  Rc1 {[%clk 0:00:06]} 98. Re2 {[%clk 0:00:18]}  Rf1+ {[%clk 0:00:06]} 99. Rf2 {[%clk 0:00:18]}  Rb1 {[%clk 0:00:07]} 100. Rc2 {[%clk 0:00:18]}  Ra1 {[%clk 0:00:07]} 101. Ke2 {[%clk 0:00:19]}  Rh1 {[%clk 0:00:07]} 102. Kd2 {[%clk 0:00:20]}  Rh2+ {[%clk 0:00:07]} 103. Kc3 {[%clk 0:00:20]}  Rxc2+ {[%clk 0:00:08]} 104. Kxc2 {[%clk 0:00:20]} 1/2-1/2

[Event "December 19 Early 2023"]
[Site "https://www.chess.com"]
[Date "2023.12.19"]
[Round "5"]
[White "Rendle, Thomas E"]
[Black "Rakhimgaliyev, Yerlan"]
[Result "0-1"]
[Board "98"]
[TimeControl "180+1"]
[WhiteFideId "408760"]
[BlackFideId "13705148"]
[WhiteElo "2424"]
[BlackElo "2261"]
[WhiteTeam "ENG"]
[BlackTeam "KAZ"]
[WhiteClock "0:00:00"]
[BlackClock "0:00:28"]

1. e4 {[%clk 0:02:55]}  e5 {[%clk 0:03:00]} 2. Nf3 {[%clk 0:02:55]}  d6 {[%clk 0:03:00]} 3. Nc3 {[%clk 0:02:50]}  Be7 {[%clk 0:03:00]} 4. g3 {[%clk 0:02:50]}  Nf6 {[%clk 0:02:59]} 5. Bg2 {[%clk 0:02:50]}  O-O {[%clk 0:03:00]} 6. O-O {[%clk 0:02:50]}  c6 {[%clk 0:02:59]} 7. d4 {[%clk 0:02:50]}  exd4 {[%clk 0:02:59]} 8. Qxd4 {[%clk 0:02:49]}  Re8 {[%clk 0:02:57]} 9. a4 {[%clk 0:02:49]}  Nbd7 {[%clk 0:02:57]} 10. Bf4 {[%clk 0:02:46]}  Qb6 {[%clk 0:02:56]} 11. Qd2 {[%clk 0:02:41]}  Nc5 {[%clk 0:02:51]} 12. Rfe1 {[%clk 0:02:33]}  Bg4 {[%clk 0:02:41]} 13. Bxd6 {[%clk 0:02:24]}  Bxd6 {[%clk 0:02:33]} 14. Qxd6 {[%clk 0:02:23]}  Rad8 {[%clk 0:02:33]} 15. Qf4 {[%clk 0:02:02]}  Qxb2 {[%clk 0:02:32]} 16. e5 {[%clk 0:01:52]}  Bxf3 {[%clk 0:02:18]} 17. Qxf3 {[%clk 0:01:44]}  Nd5 {[%clk 0:02:00]} 18. Nxd5 {[%clk 0:01:45]}  Rxd5 {[%clk 0:02:01]} 19. e6 {[%clk 0:01:17]}  Rxe6 {[%clk 0:01:52]} 20. Qf4 {[%clk 0:01:00]}  h5 {[%clk 0:01:38]} 21. Bxd5 {[%clk 0:00:57]}  cxd5 {[%clk 0:01:39]} 22. Qf5 {[%clk 0:00:48]}  Qc3 {[%clk 0:01:30]} 23. Rf1 {[%clk 0:00:43]}  Ne4 {[%clk 0:01:25]} 24. Qxd5 {[%clk 0:00:38]}  h4 {[%clk 0:00:59]} 25. Qd8+ {[%clk 0:00:30]}  Kh7 {[%clk 0:00:57]} 26. Qxh4+ {[%clk 0:00:31]}  Kg8 {[%clk 0:00:56]} 27. Qd8+ {[%clk 0:00:31]}  Kh7 {[%clk 0:00:56]} 28. Qh4+ {[%clk 0:00:32]}  Kg8 {[%clk 0:00:56]} 29. Rad1 {[%clk 0:00:31]}  g5 {[%clk 0:00:51]} 30. Qg4 {[%clk 0:00:26]}  Kg7 {[%clk 0:00:46]} 31. Rfe1 {[%clk 0:00:23]}  Nxf2 {[%clk 0:00:40]} 32. Kxf2 {[%clk 0:00:16]}  Qxc2+ {[%clk 0:00:37]} 33. Kg1 {[%clk 0:00:14]}  Qc5+ {[%clk 0:00:36]} 34. Kg2 {[%clk 0:00:14]}  Qc2+ {[%clk 0:00:35]} 35. Kh1 {[%clk 0:00:10]}  Qc6+ {[%clk 0:00:33]} 36. Kg1 {[%clk 0:00:10]}  Qc5+ {[%clk 0:00:33]} 37. Kg2 {[%clk 0:00:06]}  Qc2+ {[%clk 0:00:33]} 38. Kh3 {[%clk 0:00:02]}  Rh6+ {[%clk 0:00:33]} 39. Qh4 {[%clk 0:00:02]}  Qf5+ {[%clk 0:00:28]} 40. Kg2 {[%clk 0:00:00]}  gxh4 {[%clk 0:00:28]} 0-1

[Event "December 19 Early 2023"]
[Site "https://www.chess.com"]
[Date "2023.12.19"]
[Round "5"]
[White "Fromm, Marius"]
[Black "DeyanKostov"]
[Result "1-0"]
[Board "99"]
[TimeControl "180+1"]
[WhiteFideId "12993190"]
[WhiteElo "2335"]
[BlackElo "2477"]
[WhiteTeam "GER"]
[WhiteClock "0:00:06"]
[BlackClock "0:00:10"]

1. e4 {[%clk 0:02:47]}  c5 {[%clk 0:02:59]} 2. Nf3 {[%clk 0:02:41]}  d6 {[%clk 0:02:59]} 3. d4 {[%clk 0:02:41]}  Nf6 {[%clk 0:02:59]} 4. Nc3 {[%clk 0:02:41]}  cxd4 {[%clk 0:02:59]} 5. Nxd4 {[%clk 0:02:42]}  Nc6 {[%clk 0:02:59]} 6. f3 {[%clk 0:02:41]}  e5 {[%clk 0:02:59]} 7. Nb3 {[%clk 0:02:42]}  Be7 {[%clk 0:02:59]} 8. Be3 {[%clk 0:02:43]}  O-O {[%clk 0:02:59]} 9. Qd2 {[%clk 0:02:43]}  a5 {[%clk 0:03:00]} 10. Bb5 {[%clk 0:02:42]}  Na7 {[%clk 0:03:00]} 11. Bxa7 {[%clk 0:02:41]}  Rxa7 {[%clk 0:02:59]} 12. O-O-O {[%clk 0:02:39]}  Be6 {[%clk 0:03:00]} 13. g4 {[%clk 0:02:33]}  Nxg4 {[%clk 0:02:52]} 14. Kb1 {[%clk 0:02:27]}  Nf6 {[%clk 0:02:43]} 15. Rhg1 {[%clk 0:02:25]}  g6 {[%clk 0:02:41]} 16. f4 {[%clk 0:02:14]}  exf4 {[%clk 0:02:38]} 17. Qxf4 {[%clk 0:02:15]}  Qb6 {[%clk 0:02:10]} 18. Nd4 {[%clk 0:02:15]}  Kh8 {[%clk 0:01:57]} 19. Nxe6 {[%clk 0:01:49]}  fxe6 {[%clk 0:01:58]} 20. e5 {[%clk 0:01:50]}  Nd7 {[%clk 0:01:48]} 21. Qg4 {[%clk 0:01:40]}  Nc5 {[%clk 0:01:34]} 22. exd6 {[%clk 0:01:26]}  Bf6 {[%clk 0:01:34]} 23. Rgf1 {[%clk 0:01:20]}  Raa8 {[%clk 0:01:34]} 24. Qg3 {[%clk 0:01:06]}  Bg7 {[%clk 0:01:27]} 25. d7 {[%clk 0:01:01]}  Rxf1 {[%clk 0:01:07]} 26. Rxf1 {[%clk 0:01:02]}  Rd8 {[%clk 0:01:00]} 27. Rd1 {[%clk 0:01:02]}  Bf6 {[%clk 0:00:43]} 28. a4 {[%clk 0:00:59]}  Kg7 {[%clk 0:00:43]} 29. h4 {[%clk 0:00:58]}  Qa7 {[%clk 0:00:30]} 30. Qc7 {[%clk 0:00:46]}  Nxd7 {[%clk 0:00:19]} 31. Rxd7+ {[%clk 0:00:44]}  Rxd7 {[%clk 0:00:19]} 32. Qxd7+ {[%clk 0:00:44]}  Kh6 {[%clk 0:00:19]} 33. Qxe6 {[%clk 0:00:43]}  Bxc3 {[%clk 0:00:19]} 34. bxc3 {[%clk 0:00:44]}  Qc5 {[%clk 0:00:18]} 35. Qf6 {[%clk 0:00:40]}  b6 {[%clk 0:00:17]} 36. Be2 {[%clk 0:00:32]}  Qa3 {[%clk 0:00:12]} 37. Bb5 {[%clk 0:00:12]}  Qc5 {[%clk 0:00:12]} 38. Kb2 {[%clk 0:00:12]}  Qe3 {[%clk 0:00:10]} 39. Bd3 {[%clk 0:00:08]}  Qc5 {[%clk 0:00:10]} 40. Kb3 {[%clk 0:00:05]}  Qe3 {[%clk 0:00:10]} 41. Qf8+ {[%clk 0:00:05]}  Kh5 {[%clk 0:00:10]} 42. Qg7 {[%clk 0:00:05]}  h6 {[%clk 0:00:09]} 43. Qxg6+ {[%clk 0:00:05]}  Kxh4 {[%clk 0:00:10]} 44. Bf5 {[%clk 0:00:05]}  Qg5 {[%clk 0:00:08]} 45. Qxg5+ {[%clk 0:00:05]}  Kxg5 {[%clk 0:00:09]} 46. Bd7 {[%clk 0:00:05]}  Kf4 {[%clk 0:00:10]} 47. Kc4 {[%clk 0:00:05]}  Ke5 {[%clk 0:00:10]} 48. Kb5 {[%clk 0:00:06]} 1-0

[Event "December 19 Early 2023"]
[Site "https://www.chess.com"]
[Date "2023.12.19"]
[Round "5"]
[White "Mazurkiewicz, Michal"]
[Black "Nigalidze, Gaioz"]
[Result "1/2-1/2"]
[Board "100"]
[TimeControl "180+1"]
[WhiteFideId "1124943"]
[BlackFideId "13603078"]
[WhiteElo "2103"]
[BlackElo "2400"]
[WhiteTeam "POL"]
[BlackTeam "GEO"]
[WhiteClock "0:00:14"]
[BlackClock "0:00:23"]

1. e4 {[%clk 0:03:00]}  c5 {[%clk 0:02:59]} 2. Nf3 {[%clk 0:03:00]}  d6 {[%clk 0:03:00]} 3. g3 {[%clk 0:02:59]}  g6 {[%clk 0:02:59]} 4. Bg2 {[%clk 0:02:59]}  Bg7 {[%clk 0:02:59]} 5. O-O {[%clk 0:02:58]}  Nf6 {[%clk 0:03:00]} 6. d3 {[%clk 0:02:58]}  O-O {[%clk 0:03:00]} 7. Re1 {[%clk 0:02:58]}  Nc6 {[%clk 0:03:00]} 8. e5 {[%clk 0:02:58]}  dxe5 {[%clk 0:02:56]} 9. Nxe5 {[%clk 0:02:59]}  Nd4 {[%clk 0:02:56]} 10. c3 {[%clk 0:02:51]}  Nb5 {[%clk 0:02:52]} 11. Be3 {[%clk 0:02:41]}  Qc7 {[%clk 0:02:46]} 12. Bf4 {[%clk 0:02:41]}  Nd6 {[%clk 0:02:44]} 13. Nc4 {[%clk 0:02:42]}  Bg4 {[%clk 0:02:31]} 14. Qb3 {[%clk 0:02:31]}  Rab8 {[%clk 0:02:26]} 15. Nba3 {[%clk 0:02:27]}  b5 {[%clk 0:01:28]} 16. Nxb5 {[%clk 0:02:23]}  Rxb5 {[%clk 0:01:28]} 17. Bxd6 {[%clk 0:02:24]}  Qd7 {[%clk 0:01:28]} 18. Ne5 {[%clk 0:02:17]}  Qe8 {[%clk 0:01:18]} 19. Qa4 {[%clk 0:02:17]}  exd6 {[%clk 0:01:07]} 20. Nxg4 {[%clk 0:00:47]}  Qb8 {[%clk 0:01:06]} 21. Nxf6+ {[%clk 0:00:12]}  Bxf6 {[%clk 0:01:07]} 22. Rab1 {[%clk 0:00:06]}  Bxc3 {[%clk 0:01:03]} 23. Re7 {[%clk 0:00:06]}  a5 {[%clk 0:00:46]} 24. Bd5 {[%clk 0:00:06]}  Bf6 {[%clk 0:00:43]} 25. Rd7 {[%clk 0:00:04]}  Rxb2 {[%clk 0:00:42]} 26. Rxb2 {[%clk 0:00:04]}  Qxb2 {[%clk 0:00:40]} 27. Rxf7 {[%clk 0:00:03]}  Qe5 {[%clk 0:00:17]} 28. Rxf8+ {[%clk 0:00:03]}  Kxf8 {[%clk 0:00:17]} 29. Bc4 {[%clk 0:00:02]}  Qe1+ {[%clk 0:00:15]} 30. Kg2 {[%clk 0:00:03]}  Bd4 {[%clk 0:00:16]} 31. Qd7 {[%clk 0:00:01]}  Qxf2+ {[%clk 0:00:17]} 32. Kh3 {[%clk 0:00:01]}  Qf1+ {[%clk 0:00:17]} 33. Kg4 {[%clk 0:00:02]}  h5+ {[%clk 0:00:16]} 34. Kg5 {[%clk 0:00:02]}  Qf6+ {[%clk 0:00:14]} 35. Kh6 {[%clk 0:00:01]}  Qh8+ {[%clk 0:00:10]} 36. Kg5 {[%clk 0:00:02]}  Qf6+ {[%clk 0:00:11]} 37. Kh6 {[%clk 0:00:02]}  Be3+ {[%clk 0:00:11]} 38. Kh7 {[%clk 0:00:02]}  Qe7+ {[%clk 0:00:12]} 39. Qxe7+ {[%clk 0:00:03]}  Kxe7 {[%clk 0:00:13]} 40. Kxg6 {[%clk 0:00:03]}  Bg1 {[%clk 0:00:13]} 41. h3 {[%clk 0:00:03]}  Bf2 {[%clk 0:00:13]} 42. Kxh5 {[%clk 0:00:04]}  Bxg3 {[%clk 0:00:13]} 43. Kg4 {[%clk 0:00:04]}  Be5 {[%clk 0:00:13]} 44. Bd5 {[%clk 0:00:05]}  Bd4 {[%clk 0:00:13]} 45. Kf5 {[%clk 0:00:06]}  Bf2 {[%clk 0:00:13]} 46. Kg4 {[%clk 0:00:06]}  a4 {[%clk 0:00:13]} 47. Kf5 {[%clk 0:00:06]}  a3 {[%clk 0:00:13]} 48. Bc4 {[%clk 0:00:06]}  Kd7 {[%clk 0:00:13]} 49. Bd5 {[%clk 0:00:06]}  Be1 {[%clk 0:00:13]} 50. Kg4 {[%clk 0:00:06]}  Ke7 {[%clk 0:00:14]} 51. h4 {[%clk 0:00:07]}  Kf6 {[%clk 0:00:14]} 52. h5 {[%clk 0:00:07]}  Ke5 {[%clk 0:00:14]} 53. Bb3 {[%clk 0:00:07]}  Bd2 {[%clk 0:00:14]} 54. Kf3 {[%clk 0:00:07]}  Kd4 {[%clk 0:00:15]} 55. Ke2 {[%clk 0:00:07]}  Kc3 {[%clk 0:00:15]} 56. Bc4 {[%clk 0:00:07]}  Bh6 {[%clk 0:00:15]} 57. Bb3 {[%clk 0:00:07]}  Kd4 {[%clk 0:00:15]} 58. Bc4 {[%clk 0:00:05]}  d5 {[%clk 0:00:16]} 59. Bb3 {[%clk 0:00:06]}  c4 {[%clk 0:00:17]} 60. dxc4 {[%clk 0:00:06]}  dxc4 {[%clk 0:00:18]} 61. Ba4 {[%clk 0:00:06]}  Kc3 {[%clk 0:00:18]} 62. Bb5 {[%clk 0:00:06]}  Kb4 {[%clk 0:00:18]} 63. Ba6 {[%clk 0:00:05]}  Kc3 {[%clk 0:00:19]} 64. Kd1 {[%clk 0:00:06]}  Bg5 {[%clk 0:00:18]} 65. Bb5 {[%clk 0:00:05]}  Bh6 {[%clk 0:00:19]} 66. Ba6 {[%clk 0:00:06]}  Kb4 {[%clk 0:00:19]} 67. Kc2 {[%clk 0:00:06]}  Kc5 {[%clk 0:00:19]} 68. Bc8 {[%clk 0:00:06]}  Kd4 {[%clk 0:00:20]} 69. Be6 {[%clk 0:00:06]}  Kc5 {[%clk 0:00:20]} 70. Bf7 {[%clk 0:00:07]}  Bg7 {[%clk 0:00:20]} 71. Bg8 {[%clk 0:00:07]}  Kd4 {[%clk 0:00:20]} 72. Bf7 {[%clk 0:00:07]}  Kc5 {[%clk 0:00:20]} 73. Bg8 {[%clk 0:00:08]}  c3 {[%clk 0:00:21]} 74. Bb3 {[%clk 0:00:07]}  Kd6 {[%clk 0:00:21]} 75. Bg8 {[%clk 0:00:08]}  Bd4 {[%clk 0:00:21]} 76. Bf7 {[%clk 0:00:08]}  Ke5 {[%clk 0:00:22]} 77. Bg6 {[%clk 0:00:09]}  Kf6 {[%clk 0:00:22]} 78. Be8 {[%clk 0:00:10]}  Kg5 {[%clk 0:00:22]} 79. Bg6 {[%clk 0:00:10]}  Kh6 {[%clk 0:00:23]} 80. Be8 {[%clk 0:00:11]}  Kg5 {[%clk 0:00:23]} 81. Bf7 {[%clk 0:00:11]}  Kf6 {[%clk 0:00:24]} 82. Be8 {[%clk 0:00:12]}  Ke7 {[%clk 0:00:24]} 83. Bg6 {[%clk 0:00:12]}  Kf8 {[%clk 0:00:25]} 84. Bf5 {[%clk 0:00:12]}  Kg7 {[%clk 0:00:25]} 85. Bg4 {[%clk 0:00:13]}  Kh6 {[%clk 0:00:23]} 86. Bd1 {[%clk 0:00:14]} 1/2-1/2

[Event "December 19 Early 2023"]
[Site "https://www.chess.com"]
[Date "2023.12.19"]
[Round "5"]
[White "Omelja, Artem"]
[Black "Kashtanov, Ruslan"]
[Result "1-0"]
[Board "101"]
[TimeControl "180+1"]
[WhiteFideId "14119846"]
[BlackFideId "4124871"]
[WhiteElo "2404"]
[BlackElo "2263"]
[WhiteTeam "UKR"]
[BlackTeam "RUS"]
[WhiteClock "0:00:06"]
[BlackClock "0:00:00"]

1. d4 {[%clk 0:02:57]}  Nf6 {[%clk 0:02:53]} 2. c4 {[%clk 0:02:50]}  Nc6 {[%clk 0:02:52]} 3. Nc3 {[%clk 0:02:46]}  e5 {[%clk 0:02:51]} 4. dxe5 {[%clk 0:02:41]}  Nxe5 {[%clk 0:02:50]} 5. e3 {[%clk 0:02:42]}  Bc5 {[%clk 0:02:39]} 6. Be2 {[%clk 0:02:41]}  O-O {[%clk 0:02:34]} 7. Nf3 {[%clk 0:02:42]}  d6 {[%clk 0:02:33]} 8. O-O {[%clk 0:02:42]}  a5 {[%clk 0:02:31]} 9. b3 {[%clk 0:02:42]}  Bf5 {[%clk 0:02:26]} 10. Bb2 {[%clk 0:02:40]}  Qe7 {[%clk 0:02:23]} 11. Nd5 {[%clk 0:02:11]}  Nxd5 {[%clk 0:02:19]} 12. Qxd5 {[%clk 0:02:12]}  c6 {[%clk 0:02:15]} 13. Qd2 {[%clk 0:02:11]}  h6 {[%clk 0:01:56]} 14. Rfd1 {[%clk 0:02:07]}  Rfd8 {[%clk 0:01:54]} 15. a3 {[%clk 0:02:02]}  Bg4 {[%clk 0:01:44]} 16. Nd4 {[%clk 0:01:54]}  Qh4 {[%clk 0:01:33]} 17. Bxg4 {[%clk 0:01:31]}  Qxg4 {[%clk 0:01:18]} 18. h3 {[%clk 0:01:28]}  Qg6 {[%clk 0:01:18]} 19. Kh1 {[%clk 0:01:19]}  a4 {[%clk 0:01:17]} 20. f4 {[%clk 0:01:14]}  axb3 {[%clk 0:01:11]} 21. fxe5 {[%clk 0:01:09]}  dxe5 {[%clk 0:01:10]} 22. Qc3 {[%clk 0:00:58]}  exd4 {[%clk 0:01:08]} 23. exd4 {[%clk 0:00:59]}  Qc2 {[%clk 0:00:58]} 24. Qxc2 {[%clk 0:00:18]}  bxc2 {[%clk 0:00:57]} 25. Rd2 {[%clk 0:00:19]}  Bxa3 {[%clk 0:00:41]} 26. Rxa3 {[%clk 0:00:16]}  Rxa3 {[%clk 0:00:31]} 27. Bxa3 {[%clk 0:00:17]}  Ra8 {[%clk 0:00:30]} 28. Bc1 {[%clk 0:00:14]}  Ra2 {[%clk 0:00:28]} 29. Kg1 {[%clk 0:00:14]}  b5 {[%clk 0:00:28]} 30. d5 {[%clk 0:00:06]}  cxd5 {[%clk 0:00:10]} 31. c5 {[%clk 0:00:05]}  b4 {[%clk 0:00:09]} 32. c6 {[%clk 0:00:06]}  b3 {[%clk 0:00:00]} 33. c7 {[%clk 0:00:06]} 1-0

[Event "December 19 Early 2023"]
[Site "https://www.chess.com"]
[Date "2023.12.19"]
[Round "5"]
[White "Mohammadi, Melika"]
[Black "Masague Artero, Guerau"]
[Result "1-0"]
[Board "102"]
[TimeControl "180+1"]
[WhiteFideId "42529271"]
[BlackFideId "32098952"]
[WhiteElo "1901"]
[BlackElo "2253"]
[WhiteTeam "IRI"]
[BlackTeam "ESP"]
[WhiteClock "0:00:03"]
[BlackClock "0:00:05"]

1. e4 {[%clk 0:02:52]}  Nc6 {[%clk 0:03:00]} 2. Nf3 {[%clk 0:02:50]}  d6 {[%clk 0:03:00]} 3. d4 {[%clk 0:02:50]}  Nf6 {[%clk 0:03:00]} 4. Nc3 {[%clk 0:02:49]}  g6 {[%clk 0:03:00]} 5. Bc4 {[%clk 0:02:46]}  Bg7 {[%clk 0:02:59]} 6. h3 {[%clk 0:02:46]}  O-O {[%clk 0:02:59]} 7. d5 {[%clk 0:02:44]}  Nb8 {[%clk 0:02:58]} 8. O-O {[%clk 0:02:42]}  c6 {[%clk 0:02:58]} 9. Re1 {[%clk 0:02:41]}  b5 {[%clk 0:02:53]} 10. Bb3 {[%clk 0:02:32]}  b4 {[%clk 0:02:38]} 11. Nb1 {[%clk 0:02:26]}  Bb7 {[%clk 0:02:32]} 12. a3 {[%clk 0:02:15]}  a5 {[%clk 0:02:06]} 13. axb4 {[%clk 0:02:06]}  axb4 {[%clk 0:02:06]} 14. Rxa8 {[%clk 0:02:06]}  Bxa8 {[%clk 0:02:07]} 15. dxc6 {[%clk 0:01:56]}  Nxc6 {[%clk 0:02:08]} 16. Nbd2 {[%clk 0:01:49]}  Na5 {[%clk 0:02:05]} 17. Ba2 {[%clk 0:01:48]}  Qc7 {[%clk 0:01:54]} 18. e5 {[%clk 0:01:25]}  dxe5 {[%clk 0:01:55]} 19. Nxe5 {[%clk 0:01:24]}  e6 {[%clk 0:01:49]} 20. Ndf3 {[%clk 0:01:14]}  Nd5 {[%clk 0:01:48]} 21. Bd2 {[%clk 0:01:07]}  Rb8 {[%clk 0:01:31]} 22. Nd3 {[%clk 0:01:00]}  Nc4 {[%clk 0:01:12]} 23. Bc1 {[%clk 0:00:41]}  Rc8 {[%clk 0:01:04]} 24. Qe2 {[%clk 0:00:34]}  Ncb6 {[%clk 0:00:41]} 25. Bb3 {[%clk 0:00:31]}  Bb7 {[%clk 0:00:42]} 26. Bd2 {[%clk 0:00:26]}  Ba6 {[%clk 0:00:38]} 27. Ra1 {[%clk 0:00:20]}  Bc4 {[%clk 0:00:37]} 28. Bxc4 {[%clk 0:00:18]}  Qxc4 {[%clk 0:00:38]} 29. Rc1 {[%clk 0:00:11]}  Bxb2 {[%clk 0:00:37]} 30. Rb1 {[%clk 0:00:08]}  Bg7 {[%clk 0:00:26]} 31. Bxb4 {[%clk 0:00:07]}  Qxc2 {[%clk 0:00:25]} 32. Qxc2 {[%clk 0:00:07]}  Rxc2 {[%clk 0:00:25]} 33. Bc5 {[%clk 0:00:06]}  Nd7 {[%clk 0:00:22]} 34. Bd6 {[%clk 0:00:04]}  h6 {[%clk 0:00:20]} 35. Rb7 {[%clk 0:00:04]}  N5b6 {[%clk 0:00:13]} 36. Nfe5 {[%clk 0:00:03]}  Rc6 {[%clk 0:00:05]} 37. Nxc6 {[%clk 0:00:03]} 1-0